bitfinex-derivatives/quotes_BTCF0:USTF0_20240910
["timestamp","ask_amount","ask_price","bid_price","bid_amount"]
[1725988876725,0.2446,57240.0,57227.0,0.087366]
[1725988876726,0.28,57248.0,57227.0,0.374366]
[1725988876915,0.087341,57244.0,57243.0,0.087342]
[1725988877224,0.28,57248.0,57238.0,0.087348]
[1725988877410,0.03163204,57250.0,57227.0,0.28808]
[1725988877411,0.08735,57238.0,57227.0,0.28808]
[1725988877614,0.0004,57228.0,57227.0,0.05839639]
[1725988877813,0.087354,57235.0,57231.0,0.08736]
[1725988878020,0.087354,57235.0,57234.0,0.0004]
[1725988878426,0.08737,57225.0,57220.0,0.087777]
[1725988878629,0.2804,57221.0,57220.0,0.087777]
[1725988878831,0.0004,57221.0,57220.0,0.0004]
[1725988879126,0.367776,57221.0,57220.0,0.0004]
[1725988879520,0.2804,57221.0,57218.0,0.087379]
[1725988879726,0.2814,57221.0,57220.0,0.008]
[1725988879918,0.281,57221.0,57220.0,0.008]
[1725988880627,0.892656,57221.0,57220.0,0.019]
[1725988881020,0.80528,57221.0,57220.0,0.019]
[1725988881218,0.80628,57221.0,57220.0,0.019]
[1725988881923,0.893656,57221.0,57220.0,0.019]
[1725988882722,1.493656,57221.0,57220.0,0.019]
[1725988883223,0.087397,57208.0,57203.0,0.05139639]
[1725988883423,0.0004,57204.0,57200.0,0.05139639]
[1725988883626,0.0004,57204.0,57202.0,0.05139639]
[1725988883929,0.0004,57204.0,57203.0,0.087403]
[1725988884314,0.0004,57204.0,57201.0,0.05139639]
[1725988884724,0.0004,57202.0,57201.0,0.13880239]
[1725988884936,0.0014,57204.0,57203.0,0.087403]
[1725988885231,0.0014,57204.0,57203.0,0.087803]
[1725988885922,0.001,57204.0,57203.0,0.087803]
[1725988886226,0.002,57204.0,57203.0,0.0004]
[1725988886623,0.701244,57204.0,57203.0,0.0004]
[1725988886828,0.52444,57203.0,57190.0,0.05139639]
[1725988887030,0.2804,57191.0,57189.0,0.087425]
[1725988887235,0.0004,57190.0,57187.0,0.05139639]
[1725988887427,0.2804,57191.0,57186.0,0.05139639]
[1725988887933,0.087426,57188.0,57186.0,0.05139639]
[1725988888127,0.087432,57184.0,57183.0,0.05139639]
[1725988888329,0.087432,57184.0,57180.0,0.06862255]
[1725988888330,0.0004,57184.0,57177.0,0.05139639]
[1725988888724,0.0004,57184.0,57175.0,0.06862255]
[1725988888926,0.0004,57184.0,57182.0,0.087434]
[1725988889238,0.6014,57184.0,57177.0,0.05149639]
[1725988889430,0.367843,57178.0,57172.0,0.13894639]
[1725988889631,0.0004,57173.0,57172.0,0.05149639]
[1725988889826,0.0004,57178.0,57172.0,0.05145232]
[1725988890027,0.0004,57178.0,57177.0,0.0004]
[1725988890327,0.0004,57178.0,57177.0,0.087843]
[1725988890527,0.0004,57178.0,57177.0,0.0004]
[1725988890528,0.2804,57178.0,57177.0,0.0004]
[1725988891133,0.367841,57178.0,57177.0,0.0004]
[1725988891435,1.492521,57178.0,57177.0,0.0004]
[1725988891625,1.492521,57178.0,57164.0,0.03227065]
[1725988891626,0.087453,57171.0,57164.0,0.03227065]
[1725988891834,0.2804,57165.0,57164.0,0.03227065]
[1725988892929,0.367861,57165.0,57164.0,0.03227065]
[1725988893422,0.2804,57165.0,57164.0,0.03227065]
[1725988893625,0.087861,57165.0,57164.0,0.03227065]
[1725988893922,1.492661,57165.0,57164.0,0.03227065]
[1725988894124,1.492661,57165.0,57146.0,0.06862255]
[1725988894125,0.28,57153.0,57149.0,0.087484]
[1725988894326,0.28,57150.0,57147.0,0.087489]
[1725988894527,0.0008,57148.0,57140.0,0.05145232]
[1725988894931,0.0008,57148.0,57147.0,0.087489]
[1725988895327,0.0008,57148.0,57147.0,0.367489]
[1725988895534,0.0008,57150.0,57147.0,1.40496]
[1725988895741,0.002,57165.0,57164.0,0.087463]
[1725988897034,0.23723604,57169.0,57165.0,0.08746]
[1725988897338,0.2406,57177.0,57160.0,0.28]
[1725988897541,0.0008,57161.0,57160.0,0.28]
[1725988898330,0.0008,57161.0,57160.0,0.367469]
[1725988899338,0.001,57165.0,57160.0,0.88]
[1725988899635,0.001,57161.0,57160.0,0.28]
[1725988899830,0.28,57178.0,57160.0,0.28]
[1725988900025,0.087445,57176.0,57160.0,0.28]
[1725988900231,0.087448,57174.0,57160.0,0.28]
[1725988900439,0.28,57178.0,57172.0,0.08745]
[1725988900739,0.087446,57176.0,57172.0,0.08745]
[1725988900948,0.087438,57181.0,57165.0,0.28]
[1725988901241,0.087438,57181.0,57175.0,0.087446]
[1725988901242,0.001,57176.0,57175.0,0.087446]
[1725988901643,0.121,57185.0,57177.0,0.087442]
[1725988901644,0.087439,57180.0,57177.0,0.087442]
[1725988901845,0.001,57178.0,57177.0,0.087442]
[1725988902342,0.087435,57182.0,57178.0,0.087441]
[1725988902543,0.087435,57182.0,57181.0,0.0004]
[1725988903240,0.121,57185.0,57181.0,0.0004]
[1725988903435,0.00088,57190.0,57181.0,0.0004]
[1725988903636,0.087423,57190.0,57189.0,0.0004]
[1725988903947,0.087425,57189.0,57184.0,0.087832]
[1725988904145,0.0004,57185.0,57184.0,0.087832]
[1725988904742,0.087831,57185.0,57184.0,0.0004]
[1725988906643,0.090831,57185.0,57184.0,0.0004]
[1725988907052,0.092831,57185.0,57184.0,0.0004]
[1725988908041,0.0034,57185.0,57184.0,0.0004]
[1725988908351,0.0074,57185.0,57184.0,0.0004]
[1725988908537,0.0074,57185.0,57184.0,0.087832]
[1725988908742,0.28,57204.0,57184.0,1.17645232]
[1725988908942,0.367396,57208.0,57203.0,0.0004]
[1725988909147,0.367402,57204.0,57203.0,0.0004]
[1725988909538,0.087412,57197.0,57192.0,0.08742]
[1725988909739,0.0004,57193.0,57185.0,0.16755232]
[1725988909938,0.0004,57193.0,57185.0,0.1161]
[1725988910245,0.0004,57193.0,57192.0,0.08742]
[1725988911058,0.0004,57193.0,57192.0,0.17484]
[1725988911349,0.006,57197.0,57196.0,0.087414]
[1725988911549,0.006,57197.0,57196.0,0.087814]
[1725988913051,0.087403,57204.0,57200.0,0.087407]
[1725988913257,0.28,57203.0,57197.0,0.087412]
[1725988913447,0.2804,57198.0,57191.0,0.05145232]
[1725988913646,0.0004,57192.0,57191.0,0.087421]
[1725988913848,0.02,57197.0,57196.0,0.087414]
[1725988914039,0.009,57197.0,57196.0,0.087814]
[1725988914239,0.0004,57198.0,57197.0,0.087412]
[1725988914443,0.0004,57198.0,57197.0,0.087812]
[1725988914643,0.0044,57198.0,57197.0,0.087812]
[1725988915653,0.0044,57198.0,57197.0,0.175224]
[1725988916247,0.0104,57198.0,57197.0,0.175224]
[1725988916464,0.0224,57198.0,57197.0,0.175224]
[1725988917458,0.0224,57198.0,57197.0,1.299704]
[1725988918581,0.03188119,57210.0,57197.0,1.12488]
[1725988918784,0.28,57222.0,57209.0,0.087794]
[1725988918970,0.367374,57222.0,57221.0,0.0004]
[1725988919278,0.087389,57212.0,57211.0,0.08739]
[1725988919571,0.03376169,57212.0,57209.0,0.0004]
[1725988919772,0.0004,57210.0,57209.0,0.087794]
[1725988919977,0.0104,57210.0,57209.0,0.087794]
[1725988920567,0.0004,57210.0,57209.0,0.087794]
[1725988920767,0.0004,57210.0,57209.0,0.091794]
[1725988921169,0.0004,57210.0,57209.0,0.088794]
[1725988921360,0.0004,57210.0,57209.0,0.090794]
[1725988921573,0.0014,57210.0,57209.0,0.179188]
[1725988922354,0.0014,57210.0,57209.0,0.459188]
[1725988923052,0.0014,57210.0,57209.0,1.583588]
[1725988923459,0.0014,57210.0,57209.0,0.091794]
[1725988923654,0.088792,57210.0,57209.0,0.091794]
[1725988923851,0.0014,57210.0,57209.0,0.091794]
[1725988924656,0.0014,57210.0,57209.0,1.670982]
[1725988924857,1e-06,57210.0,57209.0,1.670982]
[1725988925060,0.10398776,57220.0,57219.0,0.087379]
[1725988925357,0.20878404,57228.0,57219.0,0.087779]
[1725988925655,0.12111887,57227.0,57226.0,0.087368]
[1725988926056,0.087377,57220.0,57219.0,0.0004]
[1725988926257,0.4889089,57220.0,57219.0,0.0004]
[1725988926465,0.61032694,57220.0,57219.0,0.0004]
[1725988926654,0.44432872,57220.0,57219.0,0.0004]
[1725988926856,0.44432872,57220.0,57219.0,0.0014]
[1725988926857,0.52985761,57220.0,57219.0,0.0014]
[1725988927053,0.087386,57214.0,57209.0,0.3321]
[1725988927257,0.0337549,57213.0,57212.0,0.087389]
[1725988927457,0.28,57215.0,57209.0,0.00648]
[1725988927762,0.367792,57210.0,57209.0,0.0054]
[1725988928056,0.367792,57210.0,57209.0,0.0004]
[1725988928252,0.892192,57210.0,57209.0,0.0004]
[1725988928453,0.087396,57208.0,57201.0,0.087406]
[1725988928653,0.0004,57202.0,57201.0,0.087406]
[1725988930057,0.0004,57202.0,57197.0,0.087411]
[1725988930255,0.087414,57197.0,57189.0,0.087424]
[1725988930461,0.0004,57190.0,57181.0,0.05141291]
[1725988930651,0.0004,57198.0,57187.0,0.28]
[1725988930848,0.0004,57198.0,57197.0,0.0004]
[1725988931454,0.087811,57198.0,57197.0,0.0004]
[1725988932055,0.0004,57198.0,57197.0,0.0004]
[1725988933353,0.0004,57198.0,57197.0,0.090812]
[1725988933763,0.0004,57198.0,57197.0,0.369812]
[1725988934156,0.0004,57198.0,57197.0,0.368812]
[1725988934461,0.116,57218.0,57211.0,0.08739]
[1725988934652,0.322677,57220.0,57217.0,0.0004]
[1725988934854,0.322677,57220.0,57219.0,0.0004]
[1725988935163,0.03185872,57223.0,57217.0,0.0004]
[1725988935353,0.0004,57218.0,57217.0,0.087782]
[1725988935554,0.117,57228.0,57225.0,0.087368]
[1725988935768,0.087347,57240.0,57217.0,0.2804]
[1725988935769,0.03223975,57230.0,57227.0,0.0004]
[1725988935964,0.28,57238.0,57227.0,0.0004]
[1725988936260,0.367351,57238.0,57229.0,0.0004]
[1725988936450,0.3513,57239.0,57229.0,0.087763]
[1725988936656,0.087353,57236.0,57229.0,0.087763]
[1725988937868,0.087354,57235.0,57229.0,0.088763]
[1725988938164,0.087354,57235.0,57229.0,0.089763]
[1725988939161,0.087354,57235.0,57229.0,0.088763]
[1725988939362,0.025,57236.0,57229.0,0.0024]
[1725988939568,0.28,57234.0,57229.0,0.0024]
[1725988939763,0.367356,57234.0,57229.0,0.0024]
[1725988939964,0.087356,57234.0,57229.0,0.0014]
[1725988940263,0.087357,57233.0,57229.0,0.0024]
[1725988941264,0.087359,57232.0,57229.0,0.0024]
[1725988942261,0.04364418,57232.0,57229.0,0.0024]
[1725988942562,0.087364,57229.0,57222.0,0.087374]
[1725988942861,0.13017332,57228.0,57222.0,0.087374]
[1725988943066,0.0004,57223.0,57222.0,0.087374]
[1725988943259,0.07694064,57223.0,57222.0,0.087374]
[1725988943868,0.13057332,57223.0,57222.0,0.088374]
[1725988944059,0.13057332,57223.0,57222.0,0.089374]
[1725988944455,0.13957332,57223.0,57222.0,0.089374]
[1725988944663,0.15057332,57223.0,57222.0,0.089374]
[1725988948663,0.15057332,57223.0,57222.0,0.176748]
[1725988948872,0.15057332,57223.0,57222.0,0.369374]
[1725988949264,0.15057332,57223.0,57222.0,0.089374]
[1725988949669,0.0204,57223.0,57222.0,0.089374]
[1725988950458,0.0204,57223.0,57222.0,0.14083838]
[1725988950669,0.0204,57223.0,57222.0,0.089374]
[1725988950870,0.0204,57223.0,57222.0,0.456748]
[1725988951272,0.0204,57223.0,57222.0,0.50821238]
[1725988951678,0.0204,57223.0,57222.0,0.089374]
[1725988957673,0.05415165,57223.0,57222.0,0.06072622]
[1725988957971,0.15057206,57223.0,57222.0,0.06072622]
[1725988958475,0.60531806,57223.0,57222.0,0.002]
[1725988958879,0.42914478,57223.0,57222.0,0.002]
[1725988959080,0.23794506,57223.0,57222.0,0.002]
[1725988961677,0.60531806,57223.0,57222.0,0.002]
[1725988961876,0.087387,57214.0,57212.0,0.087389]
[1725988962181,0.13057206,57213.0,57206.0,0.1294]
[1725988962379,0.19164542,57208.0,57206.0,0.1294]
[1725988962571,0.13017206,57207.0,57206.0,0.216799]
[1725988962974,0.0765399,57207.0,57206.0,0.741199]
[1725988963176,0.0769399,57207.0,57206.0,0.741199]
[1725988963371,0.13057206,57207.0,57206.0,0.741199]
[1725988963573,0.13057206,57207.0,57206.0,1.341199]
[1725988963871,0.13057206,57207.0,57206.0,1.428598]
[1725988963872,0.09150142,57207.0,57206.0,1.428598]
[1725988964070,0.09150142,57207.0,57206.0,0.828598]
[1725988964278,0.28337891,57207.0,57206.0,0.835598]
[1725988964581,0.19327749,57207.0,57206.0,0.4982679]
[1725988964783,0.19287749,57207.0,57206.0,0.4982679]
[1725988964969,0.19387749,57207.0,57206.0,0.5062679]
[1725988966466,0.19387749,57207.0,57206.0,0.50681207]
[1725988968175,0.19387749,57207.0,57206.0,0.70681207]
[1725988968985,0.19387749,57207.0,57206.0,0.79421107]
[1725988969178,0.19387749,57207.0,57206.0,1.83121207]
[1725988969373,0.19387749,57207.0,57206.0,0.70681207]
[1725988970582,0.19387749,57207.0,57206.0,0.79421107]
[1725988970877,0.19387749,57207.0,57206.0,0.70681207]
[1725988971473,1.58046849,57207.0,57206.0,0.07693573]
[1725988971784,1.58046849,57207.0,57203.0,0.05171099]
[1725988971785,0.0874,57205.0,57203.0,0.05171099]
[1725988971974,0.2,57204.0,57201.0,0.05171099]
[1725988972178,0.087805,57202.0,57201.0,0.05171099]
[1725988972370,0.087805,57202.0,57196.0,0.05171099]
[1725988972371,0.0004,57202.0,57196.0,0.05171099]
[1725988972572,0.087411,57198.0,57197.0,0.05171099]
[1725988972781,0.087413,57197.0,57195.0,0.1563595]
[1725988972980,0.0004,57196.0,57195.0,0.0689445]
[1725988973177,0.0004,57196.0,57194.0,0.0689445]
[1725988973381,0.0004,57195.0,57193.0,0.0689445]
[1725988974382,0.0004,57195.0,57194.0,0.05161559]
[1725988974881,0.0004,57195.0,57193.0,0.05161559]
[1725988975086,0.0014,57195.0,57194.0,0.087417]
[1725988975286,0.0014,57195.0,57194.0,0.13903259]
[1725988975483,0.0014,57195.0,57194.0,0.087417]
[1725988975683,0.0024,57195.0,57194.0,0.087417]
[1725988975883,0.0024,57195.0,57194.0,0.287417]
[1725988976081,0.0024,57195.0,57194.0,0.087417]
[1725988976380,0.0024,57195.0,57194.0,0.0515892]
[1725988976587,0.0024,57195.0,57193.0,0.002]
[1725988976781,0.0004,57194.0,57193.0,0.002]
[1725988977584,0.0004,57194.0,57193.0,0.087418]
[1725988977787,0.087817,57194.0,57193.0,0.0515892]
[1725988977987,0.087817,57194.0,57191.0,0.1390102]
[1725988978292,0.088817,57194.0,57193.0,0.011]
[1725988978683,0.001,57194.0,57193.0,0.011]
[1725988979084,0.002,57194.0,57193.0,0.008]
[1725988979786,0.001,57194.0,57193.0,0.008]
[1725988979986,0.002,57194.0,57193.0,0.011]
[1725988980282,0.089417,57194.0,57193.0,0.011]
[1725988980688,1.213937,57194.0,57173.0,0.3267]
[1725988980997,0.087424,57190.0,57180.0,0.2]
[1725988981294,0.089417,57194.0,57187.0,0.2]
[1725988981295,0.00288,57194.0,57187.0,0.2]
[1725988981496,0.002,57194.0,57193.0,0.0004]
[1725988981890,0.001,57194.0,57193.0,0.087818]
[1725988982085,0.001,57194.0,57193.0,0.088818]
[1725988982892,0.088417,57194.0,57193.0,0.0004]
[1725988983295,0.087427,57188.0,57184.0,0.087431]
[1725988983593,0.087434,57183.0,57181.0,0.087437]
[1725988983793,0.087434,57183.0,57177.0,0.008]
[1725988983794,0.087835,57182.0,57177.0,0.095442]
[1725988984008,0.0004,57178.0,57177.0,0.095442]
[1725988984200,0.0004,57178.0,57177.0,0.087442]
[1725988985598,0.0014,57178.0,57177.0,0.087442]
[1725988985991,0.03312105,57178.0,57177.0,0.087442]
[1725988986194,0.0024,57178.0,57177.0,0.087442]
[1725988986504,0.0024,57178.0,57176.0,0.087444]
[1725988986793,0.0024,57178.0,57174.0,0.0048]
[1725988986794,0.0024,57178.0,57177.0,0.087443]
[1725988986995,0.002,57178.0,57177.0,0.087443]
[1725988987697,0.2774788,57183.0,57174.0,0.0048]
[1725988987992,0.0004,57175.0,57174.0,0.1438362]
[1725988988195,0.22117684,57183.0,57174.0,0.0563892]
[1725988988400,0.03113204,57183.0,57182.0,0.087435]
[1725988988599,0.0004,57185.0,57184.0,0.087432]
[1725988988794,0.03220295,57185.0,57184.0,0.087832]
[1725988988988,0.0004,57185.0,57184.0,0.087832]
[1725988989197,0.2,57190.0,57186.0,0.087428]
[1725988989198,0.087426,57188.0,57186.0,0.087428]
[1725988989399,0.087426,57188.0,57187.0,0.087828]
[1725988989596,0.23140923,57190.0,57188.0,0.087425]
[1725988989898,0.03140923,57190.0,57189.0,0.087825]
[1725988990098,0.287423,57190.0,57189.0,0.0004]
[1725988990794,0.287423,57190.0,57176.0,0.087443]
[1725988990795,1.32456,57190.0,57177.0,0.0515892]
[1725988990991,0.087445,57176.0,57174.0,0.0567892]
[1725988991195,0.0004,57175.0,57174.0,0.0052]
[1725988991600,0.087446,57175.0,57174.0,0.0052]
[1725988992298,0.03137142,57178.0,57174.0,0.0072]
[1725988992489,0.0004,57178.0,57177.0,0.287843]
[1725988993399,0.1265,57188.0,57187.0,0.087428]
[1725988993895,0.1265,57188.0,57187.0,0.087828]
[1725988994406,0.15805045,57188.0,57187.0,0.087828]
[1725988994696,0.15805045,57188.0,57187.0,0.088828]
[1725988994902,0.03155045,57188.0,57187.0,0.088828]
[1725988995097,0.087415,57196.0,57187.0,0.0014]
[1725988995301,0.1229,57198.0,57195.0,0.0004]
[1725988995492,0.1221,57201.0,57197.0,0.0004]
[1725988995697,0.1221,57201.0,57200.0,0.087808]
[1725988995891,0.1221,57201.0,57200.0,0.087408]
[1725988996104,0.209506,57201.0,57200.0,0.087408]
[1725988996298,0.209506,57201.0,57197.0,0.0004]
[1725988996503,0.087811,57198.0,57197.0,0.0004]
[1725988996803,0.0004,57198.0,57197.0,0.0004]
[1725988997005,0.52452,57197.0,57188.0,0.087425]
[1725988997194,0.0004,57189.0,57188.0,0.087425]
[1725988997807,0.0004,57189.0,57187.0,0.001]
[1725988997994,0.0004,57188.0,57187.0,0.001]
[1725988998189,0.0004,57188.0,57178.0,0.1231]
[1725988998393,0.0004,57179.0,57178.0,0.210541]
[1725988999906,0.0004,57179.0,57178.0,0.490541]
[1725989000490,0.0014,57179.0,57178.0,0.491541]
[1725989000891,0.0024,57179.0,57178.0,1.017221]
[1725989001296,0.0024,57179.0,57178.0,0.492541]
[1725989001494,0.0024,57179.0,57178.0,1.104662]
[1725989001803,0.10424152,57189.0,57188.0,0.087426]
[1725989002008,0.12217028,57197.0,57191.0,0.087421]
[1725989002009,0.08742,57193.0,57191.0,0.087421]
[1725989002200,0.087418,57193.0,57192.0,0.0004]
[1725989002503,0.087418,57193.0,57188.0,0.0004]
[1725989002504,0.087425,57189.0,57188.0,0.0004]
[1725989002702,0.367825,57189.0,57188.0,0.0004]
[1725989003905,1.492425,57189.0,57188.0,0.0004]
[1725989004699,1.493425,57189.0,57188.0,0.0014]
[1725989005500,0.368825,57189.0,57188.0,0.0014]
[1725989006095,0.2814,57189.0,57188.0,0.0014]
[1725989006303,0.0014,57189.0,57188.0,0.088826]
[1725989006496,0.0014,57189.0,57188.0,0.28384517]
[1725989006695,0.0014,57189.0,57188.0,0.214826]
[1725989007312,0.0014,57189.0,57188.0,0.088826]
[1725989007507,0.0014,57189.0,57188.0,0.1578481]
[1725989007810,0.0014,57189.0,57188.0,0.088826]
[1725989007999,0.0313376,57191.0,57190.0,0.087423]
[1725989008199,0.087414,57196.0,57195.0,0.087415]
[1725989008403,0.1274,57200.0,57195.0,0.05174674]
[1725989008596,0.15885413,57200.0,57195.0,0.13916174]
[1725989009012,0.15885413,57200.0,57197.0,0.087412]
[1725989009210,0.087411,57198.0,57197.0,0.087412]
[1725989009508,0.15885413,57200.0,57199.0,0.087409]
[1725989009703,0.03145413,57200.0,57199.0,0.087809]
[1725989009902,0.05366264,57200.0,57199.0,0.087809]
[1725989010105,0.13024603,57200.0,57199.0,0.087809]
[1725989011013,0.14624206,57200.0,57199.0,0.087809]
[1725989011216,0.09258339,57200.0,57199.0,0.087809]
[1725989011406,0.14853375,57200.0,57199.0,0.087809]
[1725989011603,0.15784451,57200.0,57199.0,0.087809]
[1725989011802,0.15784451,57200.0,57199.0,0.175218]
[1725989012109,0.03577083,57200.0,57199.0,0.175218]
[1725989012613,0.03576013,57200.0,57199.0,0.175218]
[1725989012809,0.002,57200.0,57199.0,1.299698]
[1725989013012,0.12207368,57207.0,57199.0,1.12488]
[1725989013316,0.03375991,57206.0,57205.0,0.0874]
[1725989014520,0.04275991,57206.0,57205.0,0.0874]
[1725989014914,0.04275991,57206.0,57205.0,0.61184]
[1725989015212,0.04975991,57206.0,57205.0,0.0874]
[1725989016019,0.087403,57204.0,57197.0,0.1199]
[1725989016206,0.04975991,57206.0,57197.0,0.087412]
[1725989016207,0.10482165,57198.0,57197.0,0.087412]
[1725989016411,0.0004,57198.0,57197.0,0.087412]
[1725989017115,0.0004,57198.0,57197.0,0.288412]
[1725989017416,0.0004,57198.0,57197.0,0.375824]
[1725989017417,0.10479474,57198.0,57197.0,0.375824]
[1725989017815,0.13952331,57209.0,57197.0,1.412892]
[1725989018009,0.54067661,57219.0,57210.0,0.087392]
[1725989018010,0.03090892,57211.0,57210.0,0.087392]
[1725989018215,0.44518,57219.0,57212.0,0.087389]
[1725989018216,0.087391,57213.0,57212.0,0.087389]
[1725989018616,0.28,57216.0,57210.0,0.0004]
[1725989018617,0.087391,57211.0,57210.0,0.0004]
[1725989018810,0.087791,57211.0,57210.0,0.087792]
[1725989019011,0.087391,57211.0,57210.0,0.087792]
[1725989020606,0.101391,57211.0,57210.0,0.087792]
[1725989021413,0.112391,57211.0,57210.0,0.088792]
[1725989022821,0.14454446,57211.0,57210.0,0.088792]
[1725989023014,0.05715346,57211.0,57210.0,0.088792]
[1725989023215,0.05715346,57211.0,57210.0,0.176184]
[1725989023216,0.025,57211.0,57210.0,0.176184]
[1725989023412,0.025,57211.0,57210.0,0.088792]
[1725989024517,0.112391,57211.0,57210.0,0.088792]
[1725989027116,0.14327255,57211.0,57210.0,0.088792]
[1725989027822,0.42327255,57211.0,57210.0,0.0014]
[1725989028117,0.14327255,57211.0,57210.0,0.0014]
[1725989028324,0.14327255,57211.0,57210.0,0.088792]
[1725989029721,0.51066355,57211.0,57210.0,0.0014]
[1725989029917,0.42327255,57211.0,57210.0,0.0014]
[1725989032728,0.14327255,57211.0,57210.0,0.088792]
[1725989032918,0.18609853,57211.0,57210.0,0.06028142]
[1725989035225,0.18609853,57211.0,57207.0,0.087397]
[1725989035423,0.087797,57208.0,57207.0,0.087397]
[1725989035627,0.0341633,57208.0,57207.0,0.087397]
[1725989035830,0.13061698,57208.0,57207.0,0.087397]
[1725989037340,0.13061698,57208.0,57207.0,0.088397]
[1725989037939,0.13061698,57208.0,57207.0,0.087397]
[1725989038143,0.13861698,57208.0,57207.0,0.088397]
[1725989038445,0.13861698,57208.0,57207.0,0.175794]
[1725989038645,0.13861698,57208.0,57207.0,0.088397]
[1725989038941,0.14961698,57208.0,57207.0,0.088397]
[1725989039330,0.23701198,57208.0,57207.0,0.088397]
[1725989039536,0.14961698,57208.0,57207.0,0.088397]
[1725989039839,0.0194,57208.0,57207.0,0.088397]
[1725989040340,0.106795,57208.0,57207.0,0.088397]
[1725989040641,0.39419,57208.0,57207.0,0.05277345]
[1725989040839,0.39419,57208.0,57207.0,0.001]
[1725989041432,0.39419,57208.0,57202.0,0.05177345]
[1725989041433,0.087403,57203.0,57202.0,0.05177345]
[1725989041638,0.287403,57203.0,57197.0,0.05177345]
[1725989041837,0.287406,57201.0,57198.0,0.08741]
[1725989042042,0.2497,57202.0,57197.0,0.05177345]
[1725989042240,0.1303,57207.0,57199.0,0.05177345]
[1725989042447,0.019,57208.0,57206.0,0.0004]
[1725989042943,0.05060541,57208.0,57207.0,0.087397]
[1725989043252,0.019,57208.0,57207.0,0.087397]
[1725989043644,0.019,57208.0,57207.0,0.22656745]
[1725989043945,0.1237,57218.0,57217.0,0.087382]
[1725989044137,0.10474638,57222.0,57219.0,0.087378]
[1725989044340,0.087377,57220.0,57219.0,0.087378]
[1725989044634,0.2502,57225.0,57219.0,0.2]
[1725989044937,0.087374,57222.0,57220.0,0.087377]
[1725989045343,0.087376,57221.0,57220.0,0.087377]
[1725989045741,0.2,57223.0,57221.0,0.087374]
[1725989045940,0.2,57223.0,57222.0,0.0004]
[1725989046842,0.287373,57223.0,57222.0,0.0004]
[1725989047243,0.087376,57221.0,57220.0,0.001]
[1725989047548,0.08739,57212.0,57208.0,0.05174239]
[1725989047750,0.0004,57209.0,57206.0,0.13954039]
[1725989048041,0.10814638,57221.0,57206.0,0.0004]
[1725989048042,0.0004,57207.0,57206.0,0.0004]
[1725989048248,0.087384,57216.0,57211.0,0.087391]
[1725989048443,0.10814638,57221.0,57211.0,0.087391]
[1725989048650,0.2,57213.0,57207.0,0.05171224]
[1725989048951,0.2,57213.0,57204.0,0.06899565]
[1725989048952,0.003,57209.0,57208.0,0.087394]
[1725989050240,0.01,57209.0,57208.0,0.087394]
[1725989051040,0.013,57209.0,57208.0,0.13910624]
[1725989051250,0.013,57209.0,57208.0,0.087394]
[1725989051845,0.021,57209.0,57208.0,0.088394]
[1725989052349,0.021,57209.0,57208.0,1.212794]
[1725989052737,0.021,57209.0,57208.0,1.298956]
[1725989052940,0.03198113,57218.0,57217.0,0.087382]
[1725989053141,0.0004,57221.0,57217.0,0.0004]
[1725989053345,0.087776,57221.0,57220.0,0.0004]
[1725989054547,0.11955563,57221.0,57220.0,0.0004]
[1725989054954,0.08738,57218.0,57217.0,0.06033893]
[1725989055152,0.33019611,57218.0,57201.0,0.087405]
[1725989055341,0.087385,57215.0,57213.0,0.087388]
[1725989055543,0.13019611,57214.0,57213.0,0.087388]
[1725989056147,0.13019611,57214.0,57207.0,0.2]
[1725989056345,0.0004,57208.0,57207.0,0.087396]
[1725989056555,0.41908191,57208.0,57199.0,0.135]
[1725989056754,0.19287645,57207.0,57206.0,0.087399]
[1725989056946,0.41868191,57207.0,57206.0,0.087399]
[1725989057340,0.41972799,57207.0,57206.0,0.087399]
[1725989057946,0.13019611,57207.0,57206.0,0.087399]
[1725989058147,0.13019611,57207.0,57206.0,1.299198]
[1725989058641,0.06268034,57212.0,57211.0,0.087391]
[1725989058847,0.13019674,57212.0,57211.0,0.287791]
[1725989059042,0.0004,57218.0,57217.0,0.174764]
[1725989059254,0.13058001,57218.0,57217.0,1.499484]
[1725989059441,0.08778397,57218.0,57217.0,1.499484]
[1725989059648,0.13057229,57218.0,57217.0,1.499484]
[1725989060142,0.17023555,57218.0,57217.0,1.586866]
[1725989060345,0.22685154,57233.0,57220.0,0.262131]
[1725989060754,0.22685154,57235.0,57220.0,1.386811]
[1725989060961,0.22685154,57235.0,57234.0,0.087356]
[1725989061252,0.22685154,57238.0,57237.0,0.087351]
[1725989061449,0.22685154,57238.0,57237.0,0.287751]
[1725989061643,0.03182337,57242.0,57237.0,0.087351]
[1725989061849,0.087344,57242.0,57241.0,0.0004]
[1725989062055,0.087344,57242.0,57241.0,0.0002886]
[1725989063551,0.03158416,57247.0,57237.0,0.002]
[1725989063752,0.087336,57247.0,57246.0,0.0004]
[1725989064858,0.12931359,57247.0,57246.0,0.0014]
[1725989065156,0.04197759,57247.0,57246.0,0.0014]
[1725989065751,0.04197759,57247.0,57246.0,0.088737]
[1725989066445,0.12931359,57247.0,57246.0,0.0014]
[1725989066953,0.04197759,57247.0,57246.0,0.088737]
[1725989067353,0.04197759,57247.0,57246.0,0.089737]
[1725989067354,0.04497759,57247.0,57246.0,0.089737]
[1725989068762,0.13231359,57247.0,57246.0,0.089737]
[1725989069762,0.04497759,57247.0,57246.0,0.089737]
[1725989069964,0.10937623,57247.0,57246.0,1.581114]
[1725989070258,0.03196784,57261.0,57260.0,0.087316]
[1725989070454,0.087315,57261.0,57260.0,0.367716]
[1725989070653,0.087311,57264.0,57260.0,0.367716]